{"text_format":"1","workbook":"xlsx","n_sheets":1,"sheets":["skontroluj si odpovede"],"not_rendered":{"charts":0,"images":0,"macros":1,"external_links":0,"defined_names":2,"comments":0,"pivot_tables":0},"unopened":[],"bounds":{"document_bytes":16777216,"sheet_cells":100000,"rows_first":2000,"rows_last":500,"rows_between":2000,"halvings":0,"cell_chars":16384,"cell_head_chars":4096},"cells_cut":0,"cells_raw":0,"read":"whole","date_system":"1900"}

{"sheet":"skontroluj si odpovede","index":0,"n_rows":27,"n_cols":7,"rows_kept":27,"cut":false,"hidden":false,"merged":[[3,3,3,4],[26,0,26,1]]}
["Overenie výsledku testu Zaokrúhľovanie"]
["hodinovaucitelka.sk/materialy/matematikaZS/zaokruhlovanie.pdf"]
[null,null,null,null,null,null,"a"]
["Otázka","Tvoja odpoveď","Správne, či nie","Správna odpoveď",null,null,"b"]
["1.","a",{"$f":"IF(OR(B5=D5,B5=E5),\"ok\",\"nie, nie\")","v":"ok"},"A","a",null,"c"]
["2.","b",{"$f":"IF(OR(B6=D6,B6=E6),\"ok\",\"nie, nie\")","v":"nie, nie"},"C","c",null,"n"]
["3.","a","nie, nie","C","c",null,"A"]
["4.",null,"nie, nie","B","b",null,"B"]
["5.",null,"nie, nie","A","a",null,"C"]
["6.",null,"nie, nie","B","b",null,"N"]
["7.",null,"nie, nie","C","c"]
["8.",null,"nie, nie","A","a"]
["9.",null,"nie, nie","C","c"]
["10.",null,"nie, nie","A","a"]
["11. a",null,"nie, nie","N","n"]
["b",null,"nie, nie","A","a"]
["c",null,"nie, nie","A","a"]
["d",null,"nie, nie","N","n"]
["e",null,"nie, nie","A","a"]
["f",null,"nie, nie","A","a"]
[null,null,"nie, nie","A","a"]
[null,null,"nie, nie","N","n"]
[null,null,"nie, nie","N","n"]
["g",null,"nie, nie","A","a"]
["h",null,"nie, nie","A","a"]
["i",null,"nie, nie","N","n"]
["Počet správnych odpovedí"]